[Event "Late-Titled-Tuesday-Blitz-March-05-2024"]
[Site "Chess.com"]
[Date "2024.03.05"]
[Round "7"]
[White "traack"]
[Black "Teidi96"]
[Result "1-0"]
[WhiteElo "2436"]
[BlackElo "2313"]
[TimeControl "180+1"]
[EndTime "15:14:04 PST"]
[Termination "traack won by resignation"]

1. e4 {[%clk 0:03:00.9]} 1... c5 {[%clk 0:02:59.7]} 2. Nf3 {[%clk 0:03:00.3]}
2... e6 {[%clk 0:03:00.3]} 3. c3 {[%clk 0:02:59]} 3... Nf6 {[%clk 0:02:59.9]} 4.
e5 {[%clk 0:02:58.7]} 4... Nd5 {[%clk 0:03:00.5]} 5. d4 {[%clk 0:02:58.2]} 5...
cxd4 {[%clk 0:03:01.4]} 6. cxd4 {[%clk 0:02:58.3]} 6... d6 {[%clk 0:03:02.1]} 7.
Bc4 {[%clk 0:02:58.4]} 7... Nc6 {[%clk 0:03:00.2]} 8. O-O {[%clk 0:02:56.2]}
8... Be7 {[%clk 0:03:00.7]} 9. Nc3 {[%clk 0:02:55.1]} 9... Nxc3 {[%clk
0:03:00.4]} 10. bxc3 {[%clk 0:02:55.1]} 10... dxe5 {[%clk 0:03:01.2]} 11. dxe5
{[%clk 0:02:54.4]} 11... Qxd1 {[%clk 0:03:00.5]} 12. Rxd1 {[%clk 0:02:54.6]}
12... Bd7 {[%clk 0:02:55.7]} 13. Bf4 {[%clk 0:02:48.4]} 13... O-O-O {[%clk
0:02:54.9]} 14. Nd2 {[%clk 0:02:28.1]} 14... h6 {[%clk 0:02:42.1]} 15. Ne4
{[%clk 0:02:24.3]} 15... Na5 {[%clk 0:02:38.8]} 16. Be2 {[%clk 0:02:21.9]} 16...
Bc6 {[%clk 0:02:35.9]} 17. Nd6+ {[%clk 0:02:22.3]} 17... Bxd6 {[%clk 0:02:35.3]}
18. exd6 {[%clk 0:02:23.2]} 18... b6 {[%clk 0:02:25.8]} 19. Bg4 {[%clk
0:01:52.2]} 19... Rd7 {[%clk 0:02:04.1]} 20. Be5 {[%clk 0:01:50.9]} 20... Rg8
{[%clk 0:01:59.9]} 21. h4 {[%clk 0:01:45.8]} 21... Bd5 {[%clk 0:01:54.6]} 22. h5
{[%clk 0:01:45.5]} 22... Nc4 {[%clk 0:01:48.3]} 23. Bg3 {[%clk 0:01:43.7]} 23...
Kb7 {[%clk 0:01:37.3]} 24. Rxd5 {[%clk 0:01:42.1]} 24... exd5 {[%clk 0:01:35.3]}
25. Bxd7 {[%clk 0:01:41]} 25... Rd8 {[%clk 0:01:36.1]} 26. Bg4 {[%clk
0:01:33.9]} 26... Nxd6 {[%clk 0:01:36.2]} 27. Rd1 {[%clk 0:01:29.1]} 27... Ne4
{[%clk 0:01:33.6]} 28. c4 {[%clk 0:01:20.9]} 28... Nxg3 {[%clk 0:01:31.5]} 29.
fxg3 {[%clk 0:01:21]} 29... d4 {[%clk 0:01:29]} 30. Bf3+ {[%clk 0:01:19.6]}
30... Kc7 {[%clk 0:01:25.8]} 31. Bd5 {[%clk 0:01:20.5]} 31... Kd6 {[%clk
0:01:22.4]} 32. Rxd4 {[%clk 0:01:19.8]} 32... Kc5 {[%clk 0:01:22.9]} 33. Rf4
{[%clk 0:01:18]} 33... f6 {[%clk 0:01:21.8]} 34. Rg4 {[%clk 0:01:16.6]} 34...
Rd7 {[%clk 0:01:21.6]} 35. Kf2 {[%clk 0:01:16.4]} 35... b5 {[%clk 0:01:19.3]}
36. Be6 {[%clk 0:01:11.3]} 36... Re7 {[%clk 0:01:19.2]} 37. Re4 {[%clk
0:01:05.6]} 37... a5 {[%clk 0:01:16]} 38. cxb5 {[%clk 0:01:03.9]} 38... a4
{[%clk 0:01:11.3]} 39. Kf3 {[%clk 0:01:01.8]} 39... a3 {[%clk 0:01:09.9]} 40.
Bb3 {[%clk 0:01:00.7]} 40... Rd7 {[%clk 0:01:06.4]} 41. Ra4 {[%clk 0:00:56.6]}
41... Rd3+ {[%clk 0:01:02.5]} 42. Kf4 {[%clk 0:00:55.9]} 42... Rd2 {[%clk
0:00:59.2]} 43. Rxa3 {[%clk 0:00:53.1]} 43... Kxb5 {[%clk 0:00:59]} 44. Ra7
{[%clk 0:00:52.9]} 44... Rf2+ {[%clk 0:00:55.8]} 45. Kg4 {[%clk 0:00:50.9]}
45... f5+ {[%clk 0:00:52.3]} 46. Kh3 {[%clk 0:00:50.4]} 46... Rf1 {[%clk
0:00:52.9]} 47. Kh2 {[%clk 0:00:47]} 1-0

[Event "Late-Titled-Tuesday-Blitz-March-05-2024"]
[Site "Chess.com"]
[Date "2024.03.05"]
[Round "7"]
[White "northridgehawk"]
[Black "SergioMoralesG"]
[Result "1-0"]
[WhiteElo "2334"]
[BlackElo "2458"]
[TimeControl "180+1"]
[EndTime "15:14:07 PST"]
[Termination "northridgehawk won on time"]

1. e4 {[%clk 0:02:59.3]} 1... c5 {[%clk 0:02:59.3]} 2. Nf3 {[%clk 0:02:59.3]}
2... e6 {[%clk 0:02:59.6]} 3. d3 {[%clk 0:02:58.9]} 3... Nc6 {[%clk 0:02:59.5]}
4. Nbd2 {[%clk 0:02:58.8]} 4... g6 {[%clk 0:02:59.7]} 5. g3 {[%clk 0:02:59.2]}
5... Bg7 {[%clk 0:03:00.2]} 6. Bg2 {[%clk 0:02:59.7]} 6... Nge7 {[%clk
0:02:59.3]} 7. O-O {[%clk 0:03:00.1]} 7... O-O {[%clk 0:02:59.3]} 8. h4 {[%clk
0:03:00.4]} 8... d5 {[%clk 0:02:57.9]} 9. Re1 {[%clk 0:03:00.7]} 9... e5 {[%clk
0:02:54.7]} 10. Nf1 {[%clk 0:02:59.3]} 10... a5 {[%clk 0:02:43.5]} 11. N1h2
{[%clk 0:02:59.3]} 11... b5 {[%clk 0:02:41]} 12. h5 {[%clk 0:02:59.2]} 12... b4
{[%clk 0:02:33.7]} 13. a3 {[%clk 0:02:56.4]} 13... Ba6 {[%clk 0:02:11.7]} 14.
axb4 {[%clk 0:02:56.5]} 14... axb4 {[%clk 0:02:10.6]} 15. h6 {[%clk 0:02:49.3]}
15... Bh8 {[%clk 0:02:09.3]} 16. Ng5 {[%clk 0:02:47.5]} 16... dxe4 {[%clk
0:01:53.4]} 17. Nxe4 {[%clk 0:02:47.4]} 17... Qb6 {[%clk 0:01:46.2]} 18. Be3
{[%clk 0:02:42.2]} 18... Nd4 {[%clk 0:01:41.2]} 19. c3 {[%clk 0:02:42.4]} 19...
Ne6 {[%clk 0:01:37.2]} 20. Qb3 {[%clk 0:02:33]} 20... Rad8 {[%clk 0:01:17.7]}
21. c4 {[%clk 0:02:20.2]} 21... Nd4 {[%clk 0:00:51.3]} 22. Qa4 {[%clk 0:02:18]}
22... Bb7 {[%clk 0:00:47]} 23. Qa7 {[%clk 0:02:15.7]} 23... Qc6 {[%clk
0:00:21.9]} 24. Bg5 {[%clk 0:02:06.1]} 24... Ra8 {[%clk 0:00:11.7]} 25. Qxc5
{[%clk 0:02:05.8]} 25... Qxc5 {[%clk 0:00:06.9]} 26. Nxc5 {[%clk 0:02:06.4]}
26... Bxg2 {[%clk 0:00:07.7]} 27. Kxg2 {[%clk 0:02:06.8]} 27... f6 {[%clk
0:00:08]} 28. Be3 {[%clk 0:02:04.4]} 28... Nc2 {[%clk 0:00:07.8]} 29. Rxa8
{[%clk 0:01:58.8]} 29... Rxa8 {[%clk 0:00:08.7]} 30. Re2 {[%clk 0:01:57.3]}
30... Nxe3+ {[%clk 0:00:09]} 31. fxe3 {[%clk 0:01:57.2]} 31... Nc6 {[%clk
0:00:07]} 32. Ng4 {[%clk 0:01:57.1]} 32... f5 {[%clk 0:00:06.6]} 33. Nf2 {[%clk
0:01:56.8]} 33... Kf7 {[%clk 0:00:06.3]} 34. Rd2 {[%clk 0:01:56.7]} 34... Bf6
{[%clk 0:00:06.2]} 35. Nb3 {[%clk 0:01:56.1]} 35... Bg5 {[%clk 0:00:06.3]} 36.
Kf3 {[%clk 0:01:55.4]} 36... Bxh6 {[%clk 0:00:06.4]} 37. Rd1 {[%clk 0:01:54.3]}
37... Bf8 {[%clk 0:00:06.2]} 38. d4 {[%clk 0:01:54.4]} 38... exd4 {[%clk
0:00:05.9]} 39. exd4 {[%clk 0:01:55.3]} 39... Ra2 {[%clk 0:00:06.2]} 40. Rd2
{[%clk 0:01:55.4]} 40... Bg7 {[%clk 0:00:05.8]} 41. Nh3 {[%clk 0:01:53.5]} 41...
h6 {[%clk 0:00:05.9]} 42. Nf4 {[%clk 0:01:53.8]} 42... g5 {[%clk 0:00:05.7]} 43.
Nd5 {[%clk 0:01:53.9]} 43... h5 {[%clk 0:00:03.4]} 44. Ne3 {[%clk 0:01:54]}
44... Kg6 {[%clk 0:00:03.3]} 45. Nd1 {[%clk 0:01:45]} 45... Bh6 {[%clk
0:00:03.9]} 46. Rd3 {[%clk 0:01:43.5]} 46... g4+ {[%clk 0:00:04.2]} 47. Ke2
{[%clk 0:01:43.6]} 47... Ra1 {[%clk 0:00:05.1]} 48. d5 {[%clk 0:01:42]} 48...
Ne5 {[%clk 0:00:04.9]} 49. Rd4 {[%clk 0:01:42.3]} 49... h4 {[%clk 0:00:02.9]}
50. gxh4 {[%clk 0:01:40.9]} 50... f4 {[%clk 0:00:03.3]} 51. d6 {[%clk
0:01:39.9]} 51... f3+ {[%clk 0:00:03.6]} 52. Kf2 {[%clk 0:01:40.3]} 1-0

[Event "Late-Titled-Tuesday-Blitz-March-05-2024"]
[Site "Chess.com"]
[Date "2024.03.05"]
[Round "7"]
[White "djano"]
[Black "Midgardsormur"]
[Result "1-0"]
[WhiteElo "2573"]
[BlackElo "2450"]
[TimeControl "180+1"]
[EndTime "15:14:08 PST"]
[Termination "djano won by checkmate"]

1. e4 {[%clk 0:03:00.9]} 1... c5 {[%clk 0:02:59.1]} 2. Nc3 {[%clk 0:02:58.3]}
2... Nc6 {[%clk 0:02:57.8]} 3. Bb5 {[%clk 0:02:57.4]} 3... Nd4 {[%clk
0:02:57.9]} 4. Nf3 {[%clk 0:02:56.8]} 4... g6 {[%clk 0:02:57.5]} 5. O-O {[%clk
0:02:55.3]} 5... Bg7 {[%clk 0:02:56.4]} 6. e5 {[%clk 0:02:55.8]} 6... a6 {[%clk
0:02:39.6]} 7. Bc4 {[%clk 0:02:52.9]} 7... b5 {[%clk 0:02:18.2]} 8. Bd5 {[%clk
0:02:44.1]} 8... Rb8 {[%clk 0:02:18.1]} 9. Re1 {[%clk 0:02:34.9]} 9... Nh6
{[%clk 0:01:46.8]} 10. d3 {[%clk 0:02:23]} 10... O-O {[%clk 0:01:45.5]} 11. a3
{[%clk 0:02:19.7]} 11... Ng4 {[%clk 0:01:37.3]} 12. Bf4 {[%clk 0:01:59]} 12...
Qc7 {[%clk 0:01:37]} 13. Nxd4 {[%clk 0:01:33.4]} 13... cxd4 {[%clk 0:01:36.4]}
14. Qxg4 {[%clk 0:01:31.4]} 14... dxc3 {[%clk 0:01:18.2]} 15. e6 {[%clk
0:01:23.4]} 15... d6 {[%clk 0:01:17.2]} 16. b4 {[%clk 0:01:11.2]} 16... fxe6
{[%clk 0:01:08.1]} 17. Bxe6+ {[%clk 0:01:10.7]} 17... Bxe6 {[%clk 0:00:57.3]}
18. Qxe6+ {[%clk 0:01:11.6]} 18... Kh8 {[%clk 0:00:55.3]} 19. Bg5 {[%clk
0:01:04.6]} 19... Bf6 {[%clk 0:00:14.4]} 20. Bh6 {[%clk 0:01:02.5]} 20... Rfe8
{[%clk 0:00:11.3]} 21. Re2 {[%clk 0:01:02.5]} 21... Qc8 {[%clk 0:00:08.8]} 22.
Qd5 {[%clk 0:00:58.3]} 22... Qg4 {[%clk 0:00:07.8]} 23. Rae1 {[%clk 0:00:54.5]}
23... Qh4 {[%clk 0:00:07.4]} 24. Be3 {[%clk 0:00:45.4]} 24... Be5 {[%clk
0:00:07.5]} 25. g3 {[%clk 0:00:45.5]} 25... Qh3 {[%clk 0:00:05.7]} 26. Ba7
{[%clk 0:00:44.4]} 26... Rbc8 {[%clk 0:00:05.2]} 27. Rxe5 {[%clk 0:00:42.7]}
27... dxe5 {[%clk 0:00:05.4]} 28. Qxe5+ {[%clk 0:00:43.6]} 28... Kg8 {[%clk
0:00:01.1]} 29. Bd4 {[%clk 0:00:44.5]} 29... Kf7 {[%clk 0:00:01.2]} 30. Qg7#
{[%clk 0:00:44.5]} 1-0

[Event "Late-Titled-Tuesday-Blitz-March-05-2024"]
[Site "Chess.com"]
[Date "2024.03.05"]
[Round "7"]
[White "HaryKane"]
[Black "the_blue_pill"]
[Result "0-1"]
[WhiteElo "2579"]
[BlackElo "2430"]
[TimeControl "180+1"]
[EndTime "15:14:17 PST"]
[Termination "the_blue_pill won by resignation"]

1. c4 {[%clk 0:02:47.1]} 1... e6 {[%clk 0:02:59.6]} 2. e4 {[%clk 0:02:40.7]}
2... c5 {[%clk 0:02:58.4]} 3. Nc3 {[%clk 0:02:38.2]} 3... Nc6 {[%clk 0:02:57.7]}
4. g3 {[%clk 0:02:34.3]} 4... g6 {[%clk 0:02:55.3]} 5. Bg2 {[%clk 0:02:31.9]}
5... Bg7 {[%clk 0:02:55.8]} 6. Nge2 {[%clk 0:02:30.8]} 6... Nge7 {[%clk
0:02:55.6]} 7. O-O {[%clk 0:02:28.8]} 7... O-O {[%clk 0:02:52.5]} 8. d3 {[%clk
0:02:29.2]} 8... d6 {[%clk 0:02:48.8]} 9. Be3 {[%clk 0:02:28.4]} 9... Nd4 {[%clk
0:02:48.4]} 10. Qd2 {[%clk 0:02:26.9]} 10... Re8 {[%clk 0:02:45.8]} 11. Bh6
{[%clk 0:02:21.8]} 11... Bh8 {[%clk 0:02:45.2]} 12. Nxd4 {[%clk 0:02:21.5]}
12... cxd4 {[%clk 0:02:44.2]} 13. Ne2 {[%clk 0:02:21.8]} 13... Rb8 {[%clk
0:02:41]} 14. f4 {[%clk 0:02:14.6]} 14... b5 {[%clk 0:02:36.2]} 15. b3 {[%clk
0:02:03.4]} 15... bxc4 {[%clk 0:02:30.1]} 16. bxc4 {[%clk 0:02:04.3]} 16... Qb6
{[%clk 0:02:26.9]} 17. Rac1 {[%clk 0:01:58.6]} 17... Qb4 {[%clk 0:02:18.1]} 18.
Rc2 {[%clk 0:01:47]} 18... Qxd2 {[%clk 0:02:12.9]} 19. Rxd2 {[%clk 0:01:47.9]}
19... Bd7 {[%clk 0:02:11.1]} 20. Rc1 {[%clk 0:01:46.4]} 20... Rec8 {[%clk
0:02:03.9]} 21. g4 {[%clk 0:01:41]} 21... Nc6 {[%clk 0:01:55.2]} 22. Ng3 {[%clk
0:01:23.4]} 22... Bf6 {[%clk 0:01:44.1]} 23. f5 {[%clk 0:01:16.2]} 23... e5
{[%clk 0:01:36.2]} 24. Rf1 {[%clk 0:01:05.7]} 24... Bh4 {[%clk 0:01:24.8]} 25.
fxg6 {[%clk 0:00:43.2]} 25... hxg6 {[%clk 0:01:19.2]} 26. Rdf2 {[%clk
0:00:40.8]} 26... Be6 {[%clk 0:01:18.8]} 27. Bc1 {[%clk 0:00:38.5]} 27... Nb4
{[%clk 0:01:04]} 28. Rf3 {[%clk 0:00:37.4]} 28... Rc7 {[%clk 0:00:59.3]} 29. Ba3
{[%clk 0:00:37.2]} 29... Bxg4 {[%clk 0:00:57.7]} 30. R3f2 {[%clk 0:00:24.4]}
30... Be6 {[%clk 0:00:53.9]} 31. Rb2 {[%clk 0:00:20.5]} 31... a5 {[%clk
0:00:51.7]} 32. Rfb1 {[%clk 0:00:20]} 32... Rcb7 {[%clk 0:00:51.5]} 33. Nf1
{[%clk 0:00:16.4]} 33... Bg5 {[%clk 0:00:41.4]} 34. Kf2 {[%clk 0:00:15]} 34...
Nxd3+ {[%clk 0:00:33.7]} 0-1

[Event "Late-Titled-Tuesday-Blitz-March-05-2024"]
[Site "Chess.com"]
[Date "2024.03.05"]
[Round "7"]
[White "rickywsb"]
[Black "pooh2012"]
[Result "0-1"]
[WhiteElo "2363"]
[BlackElo "2537"]
[TimeControl "180+1"]
[EndTime "15:14:24 PST"]
[Termination "pooh2012 won by resignation"]

1. d4 {[%clk 0:03:00.9]} 1... Nf6 {[%clk 0:02:58.2]} 2. Bf4 {[%clk 0:03:00.6]}
2... e6 {[%clk 0:02:57.9]} 3. e3 {[%clk 0:02:56.8]} 3... c5 {[%clk 0:02:57.8]}
4. Nc3 {[%clk 0:02:50.5]} 4... a6 {[%clk 0:02:56.4]} 5. Nf3 {[%clk 0:02:40.8]}
5... b5 {[%clk 0:02:52.7]} 6. a4 {[%clk 0:02:35.4]} 6... b4 {[%clk 0:02:51.1]}
7. Na2 {[%clk 0:02:24.3]} 7... Nc6 {[%clk 0:02:48.7]} 8. Be2 {[%clk 0:02:16.1]}
8... d5 {[%clk 0:02:27.2]} 9. c4 {[%clk 0:01:56.8]} 9... bxc3 {[%clk 0:02:22.5]}
10. Nxc3 {[%clk 0:01:54.8]} 10... Be7 {[%clk 0:02:07.3]} 11. O-O {[%clk
0:01:53.1]} 11... cxd4 {[%clk 0:01:58.9]} 12. Nxd4 {[%clk 0:01:51.8]} 12... Bd7
{[%clk 0:01:55.2]} 13. Rc1 {[%clk 0:01:30.1]} 13... Nb4 {[%clk 0:01:52.8]} 14.
Bf3 {[%clk 0:01:03.6]} 14... O-O {[%clk 0:01:44.7]} 15. e4 {[%clk 0:01:03.9]}
15... dxe4 {[%clk 0:01:37.1]} 16. Nxe4 {[%clk 0:01:04.8]} 16... Nfd5 {[%clk
0:01:31.8]} 17. Bg3 {[%clk 0:00:54.6]} 17... Qb6 {[%clk 0:01:26.6]} 18. Nc3
{[%clk 0:00:40.6]} 18... Bf6 {[%clk 0:01:13.1]} 19. Nb3 {[%clk 0:00:35.6]} 19...
Rac8 {[%clk 0:00:50.4]} 20. a5 {[%clk 0:00:35.1]} 20... Qa7 {[%clk 0:00:41.1]}
21. Nxd5 {[%clk 0:00:34.1]} 21... Nxd5 {[%clk 0:00:39.3]} 22. Rxc8 {[%clk
0:00:33.7]} 22... Rxc8 {[%clk 0:00:39.9]} 23. Bxd5 {[%clk 0:00:33.7]} 23... exd5
{[%clk 0:00:40.3]} 24. Qxd5 {[%clk 0:00:33.2]} 24... Be6 {[%clk 0:00:38]} 25.
Qd3 {[%clk 0:00:28.3]} 25... Qb7 {[%clk 0:00:24.9]} 26. Rd1 {[%clk 0:00:24]}
26... Qxb3 {[%clk 0:00:16.7]} 27. Qd2 {[%clk 0:00:20.7]} 27... h5 {[%clk
0:00:13.8]} 28. h4 {[%clk 0:00:19.4]} 28... Rd8 {[%clk 0:00:12.6]} 0-1

[Event "Late-Titled-Tuesday-Blitz-March-05-2024"]
[Site "Chess.com"]
[Date "2024.03.05"]
[Round "7"]
[White "Zhigalko_Sergei"]
[Black "adricalderon8"]
[Result "1-0"]
[WhiteElo "2861"]
[BlackElo "2516"]
[TimeControl "180+1"]
[EndTime "15:14:28 PST"]
[Termination "Zhigalko_Sergei won by resignation"]

1. e4 {[%clk 0:03:00.2]} 1... c5 {[%clk 0:03:00.1]} 2. Nf3 {[%clk 0:02:59.6]}
2... Nc6 {[%clk 0:02:58.2]} 3. c3 {[%clk 0:02:59.8]} 3... Nf6 {[%clk 0:02:55.5]}
4. e5 {[%clk 0:02:48.6]} 4... Nd5 {[%clk 0:02:55.7]} 5. Bc4 {[%clk 0:02:34.2]}
5... Nb6 {[%clk 0:02:55.2]} 6. Bb3 {[%clk 0:02:34.6]} 6... d5 {[%clk 0:02:55.9]}
7. exd6 {[%clk 0:02:35.5]} 7... Qxd6 {[%clk 0:02:55.4]} 8. O-O {[%clk
0:02:35.3]} 8... Be6 {[%clk 0:02:55.7]} 9. Bxe6 {[%clk 0:02:35.2]} 9... Qxe6
{[%clk 0:02:56.6]} 10. a4 {[%clk 0:02:35.3]} 10... g6 {[%clk 0:02:52.4]} 11. a5
{[%clk 0:02:35.4]} 11... Nd7 {[%clk 0:02:51.9]} 12. a6 {[%clk 0:02:25.6]} 12...
b6 {[%clk 0:02:51.6]} 13. Na3 {[%clk 0:02:22.8]} 13... Bg7 {[%clk 0:02:47.9]}
14. d4 {[%clk 0:02:16]} 14... cxd4 {[%clk 0:02:47.5]} 15. Nb5 {[%clk 0:02:15.7]}
15... Rc8 {[%clk 0:02:42.7]} 16. Re1 {[%clk 0:02:14]} 16... Nde5 {[%clk
0:01:46.3]} 17. Nxe5 {[%clk 0:02:08.5]} 17... Bxe5 {[%clk 0:01:46.5]} 18. Bf4
{[%clk 0:00:53.5]} 18... dxc3 {[%clk 0:01:07.6]} 19. Bxe5 {[%clk 0:00:52.7]}
19... Nxe5 {[%clk 0:01:07.1]} 20. Qd4 {[%clk 0:00:52.4]} 20... c2 {[%clk
0:00:53.7]} 21. Nxa7 {[%clk 0:00:43.2]} 21... Rd8 {[%clk 0:00:20.1]} 22. Qxe5
{[%clk 0:00:24.6]} 22... Qxe5 {[%clk 0:00:19.9]} 23. Rxe5 {[%clk 0:00:25.5]}
23... Rd1+ {[%clk 0:00:19.8]} 24. Re1 {[%clk 0:00:25.5]} 24... Rxa1 {[%clk
0:00:19.7]} 25. Rxa1 {[%clk 0:00:25.5]} 25... O-O {[%clk 0:00:20.6]} 26. Nc6
{[%clk 0:00:22.7]} 26... Kg7 {[%clk 0:00:18.1]} 27. a7 {[%clk 0:00:21.3]} 27...
Rc8 {[%clk 0:00:13.5]} 28. Rc1 {[%clk 0:00:21]} 28... Rxc6 {[%clk 0:00:10.2]}
29. a8=Q {[%clk 0:00:20.6]} 29... Rd6 {[%clk 0:00:10.7]} 30. Qa1 {[%clk
0:00:20.7]} 1-0

[Event "Late-Titled-Tuesday-Blitz-March-05-2024"]
[Site "Chess.com"]
[Date "2024.03.05"]
[Round "7"]
[White "szachmistrz2500"]
[Black "finec2"]
[Result "1/2-1/2"]
[WhiteElo "2433"]
[BlackElo "2232"]
[TimeControl "180+1"]
[EndTime "15:14:28 PST"]
[Termination "Game drawn by repetition"]

1. e4 {[%clk 0:02:57.6]} 1... c5 {[%clk 0:02:59.5]} 2. Nf3 {[%clk 0:02:56.5]}
2... e6 {[%clk 0:03:00.2]} 3. d4 {[%clk 0:02:56.7]} 3... cxd4 {[%clk 0:03:01.1]}
4. Nxd4 {[%clk 0:02:57.1]} 4... Nc6 {[%clk 0:03:01.1]} 5. Nb5 {[%clk 0:02:56.6]}
5... d6 {[%clk 0:03:01]} 6. c4 {[%clk 0:02:55.5]} 6... Nf6 {[%clk 0:03:00.7]} 7.
N1c3 {[%clk 0:02:55.7]} 7... a6 {[%clk 0:02:59.9]} 8. Na3 {[%clk 0:02:55.6]}
8... Be7 {[%clk 0:02:59.6]} 9. Be2 {[%clk 0:02:55.9]} 9... O-O {[%clk
0:02:59.3]} 10. O-O {[%clk 0:02:56.4]} 10... b6 {[%clk 0:02:59.1]} 11. Be3
{[%clk 0:02:55.4]} 11... Ne5 {[%clk 0:02:57.8]} 12. f3 {[%clk 0:02:53.8]} 12...
Qc7 {[%clk 0:02:57.2]} 13. Rc1 {[%clk 0:02:53.1]} 13... Bb7 {[%clk 0:02:56.8]}
14. Qd2 {[%clk 0:02:53.4]} 14... Rfe8 {[%clk 0:02:46.7]} 15. Rfd1 {[%clk
0:02:53.2]} 15... Rad8 {[%clk 0:02:42.6]} 16. Bf1 {[%clk 0:02:53.3]} 16... Ned7
{[%clk 0:02:37.8]} 17. Qf2 {[%clk 0:02:52.5]} 17... Ba8 {[%clk 0:02:34]} 18. Nc2
{[%clk 0:02:41.3]} 18... Qb8 {[%clk 0:02:32.6]} 19. Nd4 {[%clk 0:02:38.7]} 19...
d5 {[%clk 0:02:22.8]} 20. exd5 {[%clk 0:02:29.3]} 20... exd5 {[%clk 0:02:22.7]}
21. cxd5 {[%clk 0:02:29.2]} 21... Bc5 {[%clk 0:02:22.1]} 22. Nf5 {[%clk
0:02:25.4]} 22... Bxe3 {[%clk 0:02:09.8]} 23. Nxe3 {[%clk 0:02:24.8]} 23... Qe5
{[%clk 0:02:09.7]} 24. Re1 {[%clk 0:02:21]} 24... Nc5 {[%clk 0:02:03.9]} 25. b4
{[%clk 0:02:16.3]} 25... Ncd7 {[%clk 0:01:44]} 26. Bxa6 {[%clk 0:02:15.9]} 26...
Qd4 {[%clk 0:01:39.5]} 27. a3 {[%clk 0:02:06.2]} 27... Ne5 {[%clk 0:01:37]} 28.
Nf5 {[%clk 0:01:42.1]} 28... Qf4 {[%clk 0:01:35.4]} 29. Ng3 {[%clk 0:01:27.1]}
29... Nxd5 {[%clk 0:01:29.3]} 30. Bb5 {[%clk 0:01:14.8]} 30... Re6 {[%clk
0:01:17.3]} 31. Rcd1 {[%clk 0:01:04.8]} 31... Red6 {[%clk 0:01:08.7]} 32. Re4
{[%clk 0:01:02.3]} 32... Qf6 {[%clk 0:00:56.8]} 33. Nxd5 {[%clk 0:00:42.3]}
33... Rxd5 {[%clk 0:00:55.1]} 34. Rxd5 {[%clk 0:00:38]} 34... Rxd5 {[%clk
0:00:49.3]} 35. Bf1 {[%clk 0:00:36.5]} 35... Rd8 {[%clk 0:00:47.9]} 36. Re1
{[%clk 0:00:33.5]} 36... h6 {[%clk 0:00:45.4]} 37. Ne4 {[%clk 0:00:33.3]} 37...
Qf5 {[%clk 0:00:44.5]} 38. Qxb6 {[%clk 0:00:32.6]} 38... Rc8 {[%clk 0:00:40.1]}
39. Nd6 {[%clk 0:00:31.5]} 39... Nxf3+ {[%clk 0:00:37.4]} 40. gxf3 {[%clk
0:00:30.4]} 40... Qxf3 {[%clk 0:00:37.4]} 41. Nxc8 {[%clk 0:00:29.1]} 41... Qh1+
{[%clk 0:00:37.2]} 42. Kf2 {[%clk 0:00:29.4]} 42... Qf3+ {[%clk 0:00:37.3]} 43.
Kg1 {[%clk 0:00:29.8]} 43... Qh1+ {[%clk 0:00:37.4]} 44. Kf2 {[%clk 0:00:30.2]}
44... Qf3+ {[%clk 0:00:37.3]} 45. Kg1 {[%clk 0:00:30.5]} 1/2-1/2

[Event "Late-Titled-Tuesday-Blitz-March-05-2024"]
[Site "Chess.com"]
[Date "2024.03.05"]
[Round "7"]
[White "ritanovikova"]
[Black "Zq1"]
[Result "0-1"]
[WhiteElo "2208"]
[BlackElo "2574"]
[TimeControl "180+1"]
[EndTime "15:14:33 PST"]
[Termination "Zq1 won on time"]

1. e4 {[%clk 0:02:59.6]} 1... c5 {[%clk 0:02:59.1]} 2. Nc3 {[%clk 0:03:00.5]}
2... g6 {[%clk 0:02:58.1]} 3. d3 {[%clk 0:03:01.4]} 3... Bg7 {[%clk 0:02:57.7]}
4. Be3 {[%clk 0:03:02.3]} 4... d6 {[%clk 0:02:56.3]} 5. Qd2 {[%clk 0:03:02.6]}
5... Nc6 {[%clk 0:02:54.3]} 6. g3 {[%clk 0:03:02.5]} 6... h5 {[%clk 0:02:52.9]}
7. h4 {[%clk 0:03:02.4]} 7... Rb8 {[%clk 0:02:51.5]} 8. Bg2 {[%clk 0:03:02.1]}
8... b5 {[%clk 0:02:50.5]} 9. Nd1 {[%clk 0:02:59.4]} 9... Nh6 {[%clk 0:02:47.3]}
10. f3 {[%clk 0:02:57.3]} 10... b4 {[%clk 0:02:46.4]} 11. Nf2 {[%clk 0:02:56.2]}
11... a5 {[%clk 0:02:44.4]} 12. Rb1 {[%clk 0:02:53.4]} 12... a4 {[%clk
0:02:44.3]} 13. Ne2 {[%clk 0:02:48.1]} 13... Ba6 {[%clk 0:02:18.9]} 14. b3
{[%clk 0:02:46]} 14... f5 {[%clk 0:02:08.4]} 15. O-O {[%clk 0:02:15.3]} 15...
Nd4 {[%clk 0:02:05.2]} 16. Nxd4 {[%clk 0:02:10]} 16... cxd4 {[%clk 0:02:04.1]}
17. Bg5 {[%clk 0:02:10.2]} 17... Nf7 {[%clk 0:02:00.3]} 18. Bf4 {[%clk
0:02:06.2]} 18... e5 {[%clk 0:01:55.7]} 19. exf5 {[%clk 0:02:00.3]} 19... gxf5
{[%clk 0:01:54.7]} 20. Rfe1 {[%clk 0:01:50]} 20... O-O {[%clk 0:01:52.9]} 21.
Bg5 {[%clk 0:01:49.7]} 21... Nxg5 {[%clk 0:01:52.4]} 22. hxg5 {[%clk 0:01:49.2]}
22... f4 {[%clk 0:01:50]} 23. gxf4 {[%clk 0:01:37.9]} 23... Rxf4 {[%clk
0:01:47.1]} 24. Nh3 {[%clk 0:01:33.1]} 24... Rf5 {[%clk 0:01:45.8]} 25. bxa4
{[%clk 0:01:29.6]} 25... Qe7 {[%clk 0:01:34.7]} 26. Rxb4 {[%clk 0:01:21.5]}
26... Rbf8 {[%clk 0:01:33.6]} 27. Rxd4 {[%clk 0:01:17.3]} 27... Qa7 {[%clk
0:01:29.1]} 28. Kh1 {[%clk 0:00:58.4]} 28... Qxd4 {[%clk 0:01:26.9]} 29. Re4
{[%clk 0:00:57.1]} 29... Qb6 {[%clk 0:01:22.5]} 30. g6 {[%clk 0:00:54.2]} 30...
Bb7 {[%clk 0:01:18.8]} 31. Rb4 {[%clk 0:00:40.6]} 31... Qa5 {[%clk 0:01:16.7]}
32. Ng1 {[%clk 0:00:28]} 32... Rf4 {[%clk 0:01:09.9]} 33. a3 {[%clk 0:00:27.2]}
33... Rxb4 {[%clk 0:01:04.3]} 34. axb4 {[%clk 0:00:26.5]} 34... Qd8 {[%clk
0:01:03.3]} 35. a5 {[%clk 0:00:23.3]} 35... Qh4+ {[%clk 0:01:01.7]} 36. Nh3
{[%clk 0:00:23.2]} 36... Rxf3 {[%clk 0:00:54.6]} 37. Kh2 {[%clk 0:00:07.7]}
37... Qg3+ {[%clk 0:00:47.4]} 0-1